fUSD/lending_fUSD_20260316
["ID","MTS","AMOUNT","RATE_DAILY","PERIOD"]
[408472262,1773695455481,-500.0,0.00015332,2]
[408472263,1773695455491,-500.0,0.00015332,2]
[408472264,1773695455501,-500.0,0.00015332,2]
[408472265,1773695455512,-500.0,0.00015332,2]
[408472266,1773695455521,-500.0,0.00015332,2]
[408472267,1773695455532,-500.0,0.00015332,2]
[408472268,1773695455541,-500.0,0.00015332,2]
[408472269,1773695455550,-500.0,0.00015332,2]
[408472270,1773695455563,-500.0,0.00015332,2]
[408472271,1773695455572,-500.0,0.00015332,2]
[408472272,1773695455581,-500.0,0.00015332,2]
[408472273,1773695455591,-500.0,0.00015332,2]
[408472274,1773695455600,-2000.0,0.00015352,2]
[408472275,1773695455610,-409.76331443,0.00015359,2]
[408472276,1773695455619,-609.0,0.00015392,2]
[408472277,1773695455628,-511.32184946,0.000154,2]
[408472278,1773695455638,-226.25868546,0.00015442,2]
[408472279,1773695455647,-609.0,0.00015442,2]
[408472280,1773695455656,-151.0,0.00015442,2]
[408472281,1773695455666,-200.0,0.00015442,2]
[408472282,1773695455675,-7726.6195285,0.00015467,2]
[408472283,1773695455684,-2108.7275875,0.00015467,2]
[408472284,1773695455693,-17444.50184577,0.00015471,2]
[408472285,1773695455703,-19199.95933027,0.00015472,2]
[408472286,1773695455712,-166.66,0.00015488,2]
[408472287,1773695455721,-609.0,0.00015488,2]
[408472288,1773695455731,-167.51,0.00015506,2]
[408472289,1773695455741,-3348.2,0.00015507,2]
[408472290,1773695455750,-352.65,0.00015511,2]
[408472291,1773695455759,-2000.0,0.00015552,2]
[408472292,1773695455769,-233.65443704,0.00015563,2]
[408472293,1773695455778,-504.75795,0.00015566,5]
[408472294,1773695455787,-501.78785805,0.00015568,2]
[408472295,1773695455796,-1500.0,0.00015568,2]
[408472296,1773695455806,-1004.38182692,0.00015568,2]
[408472297,1773695455815,-800.22543977,0.00015568,2]
[408472298,1773695455825,-1500.0,0.00015568,2]
[408472299,1773695455834,-1508.38874979,0.00015568,2]
[408472300,1773695455843,-1500.0,0.00015568,2]
[408472301,1773695455852,-1500.0,0.00015568,2]
[408472302,1773695455862,-2176.58227289,0.00015573,2]
[408472303,1773695456000,-1700.0,0.00015582,2]
[408472304,1773695456010,-1500.0,0.00015582,2]
[408472305,1773695456019,-1193.0,0.00015582,2]
[408472306,1773695456029,-609.0,0.00015587,2]
[408472307,1773695456039,-2000.0,0.00015601,2]
[408472308,1773695456048,-411.54,0.00015612,2]
[408472309,1773695456057,-151.0,0.00015639,2]
[408472310,1773695456066,-2185.78,0.00015753,2]
[408472311,1773695456076,-273.219091,0.00015794,2]
[408472312,1773695456086,-2253.54289343,0.00015807,2]
[408472313,1773695456095,-168.0,0.00015816,2]
[408472314,1773695456104,-2000.0,0.00015816,2]
[408472315,1773695456114,-1594.416729,0.00015842,2]
[408472316,1773695456123,-1594.416729,0.00015842,2]
[408472317,1773695456132,-1594.416729,0.00015842,2]
[408472318,1773695456142,-1594.416729,0.00015842,2]
[408472319,1773695456150,-500.0,0.00015845,2]
[408472320,1773695456160,-600.0,0.00015856,2]
[408472321,1773695456169,-1724.0418528,0.00015857,2]
[408472322,1773695456179,-470.5207243,0.00015857,2]
[408472323,1773695456190,-1193.0,0.00015882,2]
[408472324,1773695456199,-2000.0,0.0001589,2]
[408472325,1773695456209,-276.03757805,0.00015891,5]
[408472326,1773695456219,-3348.2,0.00015895,2]
[408472327,1773695456230,-736.0,0.00015898,2]
[408472328,1773695456239,-996.0,0.000159,2]
[408472329,1773695456248,-569.0,0.000159,2]
[408472330,1773695456258,-168.0,0.00015945,2]
[408472331,1773695456267,-609.0,0.00015952,2]
[408472332,1773695456276,-5000.0,0.0001596,2]
[408472333,1773695456294,-166.66,0.00015967,2]
[408472334,1773695456304,-200.0,0.0001599,2]
[408472335,1773695456313,-45798.14626949,0.00016,2]
[408472336,1773695456323,-209.357476,0.00016,2]
[408472337,1773695456334,-151.0,0.0001602,2]
[408472338,1773695456345,-151.0,0.0001602,2]
[408472339,1773695456358,-151.0,0.0001602,2]
[408472340,1773695456367,-161.062256,0.0001602,2]
[408472341,1773695456376,-161.062256,0.0001602,2]
[408472342,1773695456386,-161.062256,0.0001602,2]
[408472343,1773695456396,-161.062256,0.0001602,2]
[408472344,1773695456405,-218.0,0.0001602,7]
[408472345,1773695456414,-196.0,0.00016032,7]
[408472346,1773695456425,-150.0,0.00016032,7]
[408472347,1773695456435,-214.0,0.00016032,7]
[408472348,1773695456445,-151.0,0.00016064,2]
[408472349,1773695456455,-150.0,0.00016088,2]
[408472350,1773695456464,-150.0,0.00016088,2]
[408472351,1773695456473,-150.0,0.00016088,2]
[408472352,1773695456484,-160.0,0.00016088,2]
[408472353,1773695456493,-150.0,0.00016095,2]
[408472354,1773695456506,-179.0,0.00016095,2]
[408472355,1773695456516,-150.0,0.00016096,7]
[408472356,1773695456526,-150.0,0.00016096,7]
[408472357,1773695456536,-150.0,0.00016096,7]
[408472358,1773695456546,-150.0,0.00016096,7]
[408472359,1773695456555,-246.0,0.00016096,7]
[408472360,1773695456565,-151.0,0.00016116,2]
[408472361,1773695456577,-151.0,0.00016116,2]
[408472362,1773695456585,-2000.0,0.00016116,2]
[408472363,1773695456595,-2000.0,0.00016116,2]
[408472364,1773695456604,-2146.71316951,0.00016116,2]
[408472365,1773695456613,-2000.0,0.00016116,2]
[408472366,1773695456623,-469.0,0.00016152,2]
[408472367,1773695456632,-280.0,0.00016152,7]
[408472368,1773695456641,-172.0,0.00016153,7]
[408472369,1773695456650,-160.0,0.00016153,7]
[408472370,1773695456660,-195.92,0.00016178,2]
[408472371,1773695456669,-200.0,0.00016191,7]
[408472372,1773695456678,-252.0,0.00016191,7]
[408472373,1773695456691,-151.0,0.00016199,2]
[408472374,1773695456700,-5000.00812232,0.000162,5]
[408472375,1773695456710,-458.044067,0.0001621,2]
[408472376,1773695456720,-458.044067,0.0001621,2]
[408472377,1773695456729,-458.044067,0.0001621,2]
[408472378,1773695456739,-458.044067,0.0001621,2]
[408472379,1773695456748,-2156.468578,0.0001621,2]
[408472380,1773695456759,-2156.468578,0.0001621,2]
[408472381,1773695456768,-151.0,0.0001621,2]
[408472382,1773695456778,-2156.468578,0.0001621,2]
[408472383,1773695456788,-2156.468578,0.0001621,2]
[408472384,1773695456797,-19199.95933027,0.0001621,2]
[408472385,1773695456806,-151.0,0.0001621,2]
[408472386,1773695456816,-823.539599,0.0001621,2]
[408472387,1773695456825,-823.539599,0.0001621,2]
[408472388,1773695456834,-823.539599,0.0001621,2]
[408472389,1773695456844,-823.539599,0.0001621,2]
[408472390,1773695456853,-1503.152701,0.00016214,7]
[408472391,1773695456862,-168.0,0.00016234,2]
[408472392,1773695456871,-195.92,0.00016252,2]
[408472393,1773695456879,-411.54,0.00016262,2]
[408472394,1773695456888,-409.76331443,0.00016267,2]
[408472395,1773695456898,-1086.648173,0.00016276,7]
[408472396,1773695456907,-241.529954,0.00016276,7]
[408472397,1773695456916,-500.0,0.00016282,2]
[408472398,1773695456925,-3348.2,0.00016282,2]
[408472399,1773695456934,-1171.0,0.00016305,2]
[408472400,1773695456943,-195.91067044,0.00016326,2]
[408472401,1773695456952,-200.0,0.0001634,2]
[408472402,1773695456961,-2117.339016,0.00016342,7]
[408472403,1773695456970,-501.3548295,0.00016364,2]
[408472404,1773695456979,-168.0,0.00016393,2]
[408472405,1773695456988,-168.0,0.00016397,2]
[408472406,1773695456998,-151.0,0.00016398,2]
[408472407,1773695457007,-151.0,0.00016398,2]
[408472408,1773695457017,-151.0,0.00016398,2]
[408472409,1773695457028,-150.0,0.000164,2]
[408472410,1773695457038,-213.0,0.000164,2]
[408472411,1773695457048,-302.46,0.000164,2]
[408472412,1773695457058,-353.70444214,0.000164,2]
[408472413,1773695457072,-500.0,0.00016438,2]
[408472414,1773695457083,-500.0,0.00016438,2]
[408472415,1773695457092,-797.0,0.00016438,2]
[408472416,1773695457103,-151.0,0.00016438,2]
[408472417,1773695457112,-151.0,0.00016438,2]
[408472418,1773695457122,-151.0,0.00016438,2]
[408472419,1773695457132,-213.607633,0.00016438,2]
[408472420,1773695457143,-900.0,0.00016438,2]
[408472421,1773695457152,-151.0,0.00016438,2]
[408472422,1773695457162,-151.0,0.00016438,2]
[408472423,1773695457172,-151.0,0.00016438,2]
[408472424,1773695457182,-151.0,0.00016438,2]
[408472425,1773695457192,-151.0,0.00016438,2]
[408472426,1773695457202,-151.0,0.00016438,2]
[408472427,1773695457211,-151.0,0.00016438,2]
[408472428,1773695457222,-151.0,0.00016438,2]
[408472429,1773695457231,-155.667578,0.00016438,2]
[408472430,1773695457242,-216.670915,0.00016438,2]
[408472431,1773695457251,-216.670915,0.00016438,2]
[408472432,1773695457260,-216.670915,0.00016438,2]
[408472433,1773695457269,-216.670915,0.00016438,2]
[408472434,1773695457279,-216.670915,0.00016438,2]
[408472435,1773695457288,-216.670915,0.00016438,2]
[408472436,1773695457301,-216.670915,0.00016438,2]
[408472437,1773695457311,-216.670915,0.00016438,2]
[408472438,1773695457320,-216.670915,0.00016438,2]
[408472439,1773695457330,-216.670915,0.00016438,2]
[408472440,1773695457341,-216.670915,0.00016438,2]
[408472441,1773695457351,-216.670915,0.00016438,2]
[408472442,1773695457361,-151.0,0.00016438,2]
[408472443,1773695457371,-96.18122848,0.00016438,2]
[408472447,1773695700200,1695.8,7.459e-05,2]
[408472448,1773695700247,1695.8,7.852e-05,2]
[408472449,1773695700594,1695.8,8.244e-05,2]
[408472450,1773695701064,1695.8,8.637e-05,2]
[408472451,1773695701306,1695.8,9.029e-05,2]
[408472452,1773695701580,1695.8,9.422e-05,2]
[408472454,1773695967876,-250.0,9.815e-05,2]
[408472475,1773696632178,-400.0,9.815e-05,2]
[408472476,1773696632238,-1045.8,9.815e-05,2]
[408472477,1773696632247,-454.2,0.00010207,2]
[408472478,1773696632259,-583.896,0.00010207,2]
[408472479,1773696632270,-547.77308168,0.00010207,2]
[408472480,1773696632282,-109.93091832,0.00010207,2]
[408472481,1773696632292,-1695.8,0.000106,2]
[408472482,1773696632302,-250.0,0.00010796,2]
[408472483,1773696632312,-250.0,0.00010796,2]
[408472484,1773696632321,-250.0,0.00010796,2]
[408472485,1773696632333,-863.39623999,0.00010921,2]
[408472486,1773696632342,-1200.0,0.00010991,2]
[408472487,1773696632351,-1656.47426551,0.00010992,2]
[408472490,1773696632371,-39.32573449,0.00010992,2]
[408472492,1773696632381,-300.0,0.00011382,2]
[408472495,1773696632390,-1695.8,0.00011385,2]
[408472498,1773696632400,-1695.8,0.00011777,2]
[408472500,1773696632409,-3301.09,0.00011973,2]
[408472503,1773696632419,-185.13,0.00012003,2]
[408472505,1773696632428,-247.3325322,0.00012028,2]
[408472507,1773696632438,-150.0,0.00012064,2]
[408472509,1773696632448,-2073.58,0.00012087,2]
[408472511,1773696632457,-150.99,0.00012087,2]
[408472513,1773696632467,-9999.99,0.00012087,2]
[408472515,1773696632476,-1680.0,0.0001209,2]
[408472517,1773696632486,-150.0,0.00012093,2]
[408472519,1773696632495,-606.76803504,0.00012094,2]
[408472521,1773696632505,-151.0,0.00012094,2]
[408472523,1773696632514,-151.0,0.00012094,2]
[408472525,1773696632524,-151.0,0.00012094,2]
[408472527,1773696632535,-151.0,0.00012094,2]
[408472528,1773696632545,-200.0,0.00012094,2]
[408472529,1773696632554,-151.0,0.00012094,2]
[408472530,1773696632563,-151.0,0.00012094,2]
[408472531,1773696632572,-151.0,0.00012094,2]
[408472532,1773696632582,-151.0,0.00012094,2]
[408472533,1773696632591,-151.0,0.00012094,2]
[408472534,1773696632601,-151.0,0.00012094,2]
[408472535,1773696632611,-151.0,0.00012094,2]
[408472536,1773696632621,-151.0,0.00012094,2]
[408472537,1773696632632,-151.0,0.00012094,2]
[408472538,1773696632641,-151.0,0.00012094,2]
[408472539,1773696632651,-151.0,0.00012094,2]
[408472540,1773696632660,-151.0,0.00012094,2]
[408472541,1773696632670,-295.94145801,0.00012094,2]
[408472542,1773696632683,-11110.19,0.00012101,2]
[408472543,1773696632693,-200.0,0.00012103,2]
[408472544,1773696632704,-1600.0,0.00012151,2]
[408472545,1773696632715,-1695.8,0.0001217,2]
[408472546,1773696632724,-786.64,0.00012266,2]
[408472547,1773696632734,-1839.32394471,0.00012271,2]
[408472548,1773696632743,-1695.8,0.00012563,2]
[408472549,1773696632752,-200.0,0.00012642,2]
[408472550,1773696632762,-500.0,0.00012738,2]
[408472551,1773696632771,-312.47877632,0.00012821,2]
[408472552,1773696632780,-500.0,0.00012821,2]
[408472553,1773696632790,-1034.99016664,0.00012895,2]
[408472554,1773696632802,-1695.8,0.00012955,2]
[408472555,1773696632811,-500.0,0.00013095,2]
[408472556,1773696632821,-255.0,0.00013181,2]
[408472557,1773696632831,-200.0,0.0001319,2]
[408472558,1773696632840,-2351.0,0.00013299,2]
[408472559,1773696632850,-1695.8,0.00013348,2]
[408472560,1773696632859,-774.45,0.00013358,2]
[408472561,1773696632868,-398.95,0.00013358,2]
[408472562,1773696632879,-185.20088518,0.00013369,2]
[408472563,1773696632888,-3240.0,0.00013425,2]
[408472564,1773696632898,-2500.0,0.0001352,2]
[408472565,1773696632907,-1244.18,0.00013565,2]
[408472566,1773696632917,-9700.90708086,0.0001357,2]
[408472567,1773696632926,-572.23330246,0.0001357,2]
[408472568,1773696632935,-711.38126696,0.00013573,2]
[408472569,1773696632944,-3572.0,0.00013589,2]
[408472570,1773696632954,-155.7696247,0.0001361,2]
[408472571,1773696632963,-500.0,0.00013619,2]
[408472572,1773696632972,-500.0,0.00013619,2]
[408472573,1773696632982,-500.0,0.00013619,2]
[408472574,1773696632991,-500.0,0.00013619,2]
[408472575,1773696633000,-500.0,0.00013619,2]
[408472576,1773696633010,-500.0,0.00013619,2]
[408472577,1773696633019,-304.60965631,0.00013619,2]
[408472578,1773696633028,-500.0,0.00013619,2]
[408472579,1773696633037,-500.0,0.00013619,2]
[408472580,1773696633047,-500.0,0.00013619,2]
[408472581,1773696633056,-500.0,0.00013619,2]
[408472582,1773696633065,-500.0,0.00013619,2]
[408472583,1773696633074,-500.0,0.00013619,2]
[408472584,1773696633083,-500.0,0.00013619,2]
[408472585,1773696633093,-500.0,0.00013619,2]
[408472586,1773696633102,-500.0,0.00013619,2]
[408472587,1773696633112,-605.00503385,0.00013619,2]
[408472588,1773696633122,-500.0,0.00013619,2]
[408472589,1773696633131,-500.0,0.00013619,2]
[408472590,1773696633141,-500.0,0.00013619,2]
[408472591,1773696633150,-500.0,0.00013619,2]
[408472592,1773696633160,-500.0,0.00013619,2]
[408472593,1773696633169,-500.0,0.00013619,2]
[408472594,1773696633179,-500.0,0.00013619,2]
[408472595,1773696633188,-500.0,0.00013619,2]
[408472596,1773696633197,-500.0,0.00013619,2]
[408472597,1773696633211,-500.0,0.00013619,2]
[408472598,1773696633220,-500.0,0.00013619,2]
[408472599,1773696633230,-500.0,0.00013619,2]
[408472600,1773696633240,-500.0,0.00013619,2]
[408472601,1773696633250,-500.0,0.00013619,2]
[408472602,1773696633260,-500.0,0.00013619,2]
[408472603,1773696633269,-500.0,0.00013619,2]
[408472604,1773696633279,-479.48036117,0.00013619,2]
[408472605,1773696633288,-500.0,0.00013619,2]
[408472606,1773696633297,-513.22675941,0.00013619,2]
[408472607,1773696633307,-500.0,0.00013619,2]
[408472608,1773696633316,-500.0,0.00013619,2]
[408472609,1773696633325,-500.0,0.00013619,2]
[408472610,1773696633334,-551.75224911,0.00013619,2]
[408472611,1773696633344,-500.0,0.00013619,2]
[408472612,1773696633353,-500.0,0.00013619,2]
[408472613,1773696633363,-500.0,0.00013619,2]
[408472614,1773696633372,-153.58276153,0.00013619,2]
[408472615,1773696633381,-500.0,0.00013619,2]
[408472616,1773696633391,-500.0,0.00013619,2]
[408472617,1773696633400,-500.0,0.00013619,2]
[408472618,1773696633409,-485.32992184,0.00013619,2]
[408472619,1773696633419,-500.0,0.00013619,2]
[408472620,1773696633428,-500.0,0.00013619,2]
[408472621,1773696633438,-500.0,0.00013619,2]
[408472622,1773696633447,-500.0,0.00013619,2]
[408472623,1773696633456,-500.0,0.00013619,2]
[408472624,1773696633466,-501.86433544,0.00013619,2]
[408472625,1773696633475,-500.0,0.00013619,2]
[408472626,1773696633486,-500.0,0.00013619,2]
[408472627,1773696633500,-519.53797251,0.00013619,2]
[408472628,1773696633512,-500.0,0.00013619,2]
[408472629,1773696633522,-500.0,0.00013619,2]
[408472630,1773696633533,-500.0,0.00013619,2]
[408472631,1773696633542,-500.0,0.00013619,2]
[408472632,1773696633552,-500.0,0.00013619,2]
[408472633,1773696633562,-404.44910188,0.00013619,2]
[408472634,1773696633571,-500.0,0.00013619,2]
[408472635,1773696633580,-500.0,0.00013619,2]
[408472636,1773696633590,-500.0,0.00013619,2]
[408472637,1773696633600,-500.0,0.00013619,2]
[408472638,1773696633610,-500.0,0.00013619,2]
[408472639,1773696633622,-647.18533635,0.00013619,2]
[408472640,1773696633632,-500.0,0.00013619,2]
[408472641,1773696633642,-500.0,0.00013619,2]
[408472642,1773696633651,-486.63573666,0.00013619,2]
[408472643,1773696633661,-500.0,0.00013619,2]
[408472644,1773696633671,-500.0,0.00013619,2]
[408472645,1773696633683,-500.0,0.00013619,2]
[408472646,1773696633692,-500.0,0.00013619,2]
[408472647,1773696633702,-500.0,0.00013619,2]
[408472648,1773696633712,-497.91631232,0.00013619,2]
[408472649,1773696633722,-500.0,0.00013619,2]
[408472650,1773696633732,-500.0,0.00013619,2]
[408472651,1773696633743,-500.0,0.00013619,2]
[408472652,1773696633754,-500.0,0.00013619,2]
[408472653,1773696633763,-500.0,0.00013619,2]
[408472654,1773696633773,-500.0,0.00013619,2]
[408472655,1773696633782,-500.0,0.00013619,2]
[408472656,1773696633792,-500.0,0.00013619,2]
[408472657,1773696633801,-500.0,0.00013619,2]
[408472658,1773696633811,-500.0,0.00013619,2]
[408472659,1773696633821,-500.0,0.00013619,2]
[408472660,1773696633831,-131470.79123374,0.0001362,2]
[408472661,1773696633843,-6702.68114503,0.0001362,2]
[408472662,1773696633855,-3826.68630756,0.0001362,2]
[408472666,1773696638200,-38381.97207384,0.0001362,2]
[408472667,1773696638212,-250.10005568,0.0001362,2]
[408472668,1773696638314,-429.26357115,0.0001362,2]
[408472669,1773696638327,-941.92777132,0.0001362,2]
[408472672,1773696640565,-73349.05107162,0.0001362,2]
[408472673,1773696640624,-3883.4791997,0.0001362,2]
[408472674,1773696640900,-3829.97459628,0.0001362,2]
[408472684,1773696645510,-1252.00116079,0.0001362,2]
[408472742,1773696646343,-2023.08197481,0.0001362,2]
[408472743,1773696646354,-1802.5000008,0.0001362,2]
[408472744,1773696646403,-355206.58787028,0.0001362,2]
[408472745,1773696646416,-704100.0,0.0001362,2]
[408472746,1773696646756,-405.2128,0.0001362,2]
[408472751,1773697618131,-185.49528889,0.00011796,2]
[408472761,1773697832399,-281.07891703,0.00011695,2]
[408472762,1773697832409,-5532.0,0.000117,5]
[408472763,1773697832419,-177.70877476,0.00011771,2]
[408472764,1773697832428,-150.0,0.00011821,2]
[408472765,1773697832437,-150.0,0.00011821,2]
[408472766,1773697832447,-217.35864612,0.00011821,2]
[408472767,1773697832456,-1200.0,0.0001187,2]
[408472768,1773697832466,-1329.17,0.00011871,2]
[408472769,1773697832475,-4547.7,0.00011922,2]
[408472770,1773697832485,-166.66,0.00012017,2]
[408472771,1773697832498,-657.4017922,0.00012206,2]
[408472772,1773697832508,-234.04,0.00012245,2]
[408472773,1773697832518,-166.66,0.0001227,2]
[408472774,1773697832527,-473.0,0.00012301,2]
[408472775,1773697832536,-44157.87357777,0.00012331,2]
[408472776,1773697832546,-150.0,0.0001234,2]
[408472777,1773697832555,-1500.0,0.00012341,2]
[408472779,1773697832564,-937.93,0.00012341,2]
[408472781,1773697832573,-52682.62,0.00012341,2]
[408472783,1773697832582,-7599.64,0.00012341,2]
[408472784,1773697832591,-150.99,0.00012341,2]
[408472786,1773697832601,-153.0,0.00012398,2]
[408472788,1773697832610,-1265.0,0.00012422,2]
[408472791,1773697832621,-166.66,0.00012523,2]
[408472792,1773697832630,-298.0,0.00012541,2]
[408472793,1773697832640,-166.66,0.00012561,2]
[408472794,1773697832649,-185.0,0.00012579,2]
[408472795,1773697832659,-250.0,0.00012673,2]
[408472796,1773697832669,-193.0,0.00012737,2]
[408472797,1773697832679,-5000.0,0.00012737,2]
[408472798,1773697832689,-300.0,0.00012737,2]
[408472799,1773697832700,-1417.52052328,0.00012755,2]
[408472800,1773697832709,-166.66,0.00012776,2]
[408472801,1773697832720,-250.0,0.00012782,2]
[408472803,1773697832729,-150.0,0.00012831,2]
[408472804,1773697832738,-415.31278319,0.00012865,2]
[408472805,1773697832747,-234.04,0.00012925,2]
[408472807,1773697832758,-1895.00940229,0.00012948,2]
[408472809,1773697832767,-166.66,0.00012975,2]
[408472810,1773697832776,-166.66,0.00013029,2]
[408472812,1773697832785,-1680.0,0.00013057,2]
[408472813,1773697832795,-500.0,0.00013096,2]
[408472814,1773697832804,-500.0,0.0001326,2]
[408472815,1773697832814,-166.66,0.00013282,2]
[408472816,1773697832823,-6758.9808,0.00013311,2]
[408472817,1773697832833,-72984.08562832,0.00013311,2]
[408472818,1773697832845,-13661.50569004,0.00013311,2]
[408472819,1773697832857,-385.00293256,0.00013311,2]
[408472820,1773697832868,-303.8818997,0.00013311,2]
[408472821,1773697832879,-1492.0,0.00013311,2]
[408472822,1773697832894,-302.18492085,0.00013311,2]
[408472823,1773697832906,-413.43024689,0.00013311,2]
[408472824,1773697832917,-3200.41564869,0.00013311,2]
[408472830,1773697837291,-754.07848955,0.00012848,2]
[408472831,1773697837416,-1440.7998,0.00012848,2]
[408472832,1773697837984,-287.76367543,0.00012848,2]
[408472833,1773697837996,-143.98973502,0.00012848,2]
[408472834,1773697838007,-500.0,0.0001331,2]
[408472835,1773697838016,-500.0,0.0001331,2]
[408472836,1773697838027,-199.79163123,0.0001331,2]
[408472837,1773697838037,-136.74199872,0.0001331,2]
[408472838,1773697838050,-363.25800128,0.0001331,2]
[408472839,1773697838059,-500.0,0.0001331,2]
[408472840,1773697838069,-500.0,0.0001331,2]
[408472841,1773697838078,-500.0,0.0001331,2]
[408472842,1773697838088,-500.0,0.0001331,2]
[408472843,1773697838097,-500.0,0.0001331,2]
[408472844,1773697838107,-500.0,0.0001331,2]
[408472845,1773697838117,-500.0,0.0001331,2]
[408472846,1773697838127,-500.0,0.0001331,2]
[408472847,1773697838136,-154.35182603,0.0001331,2]
[408472848,1773697838148,-345.64817397,0.0001331,2]
[408472849,1773697838157,-150.0,0.0001331,2]
[408472850,1773697838167,-1511.23348203,0.00013311,2]
[408472851,1773697838179,-946.25897156,0.00013311,2]
[408472852,1773697838203,-307.92957538,0.00013311,2]
[408472853,1773697838215,-2953.99780398,0.00013311,2]
[408472854,1773697838224,-166.66,0.0001339,2]
[408472855,1773697838234,-500.0,0.00013411,2]
[408472857,1773697838243,-500.0,0.00013411,2]
[408472859,1773697838252,-500.0,0.00013411,2]
[408472860,1773697838262,-500.0,0.00013411,2]
[408472861,1773697838272,-500.0,0.00013411,2]
[408472862,1773697838282,-500.0,0.00013411,2]
[408472863,1773697838291,-500.0,0.00013411,2]
[408472864,1773697838300,-0.22143531,0.00013411,2]
[408472865,1773697838315,-150.77856469,0.00013411,2]
[408472866,1773697838324,-500.0,0.00013411,2]
[408472867,1773697838333,-151.0,0.00013411,2]
[408472868,1773697838343,-500.0,0.00013411,2]
[408472869,1773697838352,-151.0,0.00013411,2]
[408472870,1773697838361,-500.0,0.00013411,2]
[408472871,1773697838371,-151.0,0.00013411,2]
[408472872,1773697838381,-200.0,0.00013411,2]
[408472873,1773697838390,-500.0,0.00013411,2]
[408472874,1773697838399,-151.0,0.00013411,2]
[408472875,1773697838409,-151.0,0.00013411,2]
[408472876,1773697838418,-151.0,0.00013411,2]
[408472877,1773697838428,-151.0,0.00013411,2]
[408472878,1773697838437,-151.0,0.00013411,2]
[408472879,1773697838447,-151.0,0.00013411,2]
[408472880,1773697838457,-151.0,0.00013411,2]
[408472881,1773697838466,-151.0,0.00013411,2]
[408472882,1773697838476,-151.0,0.00013411,2]
[408472883,1773697838486,-151.0,0.00013411,2]
[408472884,1773697838497,-151.0,0.00013411,2]
[408472885,1773697838507,-151.0,0.00013411,2]
[408472886,1773697838516,-151.0,0.00013411,2]
[408472887,1773697838527,-151.0,0.00013411,2]
[408472888,1773697838537,-151.0,0.00013411,2]
[408472889,1773697838547,-151.0,0.00013411,2]
[408472890,1773697838556,-151.0,0.00013411,2]
[408472891,1773697838566,-151.0,0.00013411,2]
[408472892,1773697838575,-151.0,0.00013411,2]
[408472893,1773697838585,-151.0,0.00013411,2]
[408472894,1773697838594,-151.0,0.00013411,2]
[408472895,1773697838603,-151.0,0.00013411,2]
[408472896,1773697838613,-151.0,0.00013411,2]
[408472897,1773697838623,-151.0,0.00013411,2]
[408472898,1773697838632,-151.0,0.00013411,2]
[408472899,1773697838641,-151.0,0.00013411,2]
[408472900,1773697838650,-299.02327556,0.00013411,2]
[408472901,1773697838660,-8808.47408561,0.00013411,2]
[408472903,1773697839490,-9431.91460695,0.00013411,2]
[408472904,1773697839499,-1120.9195,0.00013419,2]
[408472905,1773697839509,-4297.56440898,0.00013419,2]
[408472906,1773697839518,-255.0,0.00013426,2]
[408472907,1773697839527,-2500.0,0.0001347,2]
[408472908,1773697839538,-1244.39,0.00013518,2]
[408472909,1773697839548,-32961.6878,0.00013519,2]
[408472910,1773697839558,-1000.0,0.00013519,2]